bitfinex/quotes_ETHUSD_20250520
["timestamp","ask_amount","ask_price","bid_price","bid_amount"]
[1747700479632,3.92714608,2546.4,2546.1,0.89342]
[1747700480026,0.91226301,2547.2,2546.1,0.89342]
[1747700480227,3.92504641,2547.8,2546.2,1.0023]
[1747700480442,3.92598171,2547.2,2546.4,8.0]
[1747700480642,3.92510892,2547.7,2546.5,1.0023]
[1747700480834,3.92495486,2547.8,2546.6,0.90023]
[1747700481028,0.05,2547.9,2546.7,1.0023]
[1747700481262,0.05,2547.9,2546.9,1.0023]
[1747700481443,3.92517283,2547.7,2547.1,8.0]
[1747700481643,0.05,2547.9,2547.2,1.0023]
[1747700481829,0.05,2547.9,2547.2,1.83456847]
[1747700482167,3.92572527,2547.3,2547.2,10.9113]
[1747700482663,3.92531466,2547.6,2547.2,10.9113]
[1747700482843,3.92572527,2547.3,2547.2,10.9113]
[1747700483368,3.92572527,2547.3,2547.2,1.0023]
[1747700483679,3.92572527,2547.3,2546.8,25.9533]
[1747700483680,3.92634182,2546.9,2546.8,25.9533]
[1747700483829,3.92634182,2546.9,2546.8,27.8623]
[1747700484241,3.92609821,2547.1,2546.8,30.64853]
[1747700484664,3.92612762,2547.1,2546.9,8.0]
[1747700484981,3.92612762,2547.1,2546.8,30.64853]
[1747700484982,3.92634182,2546.9,2546.8,17.9533]
[1747700485380,3.92634182,2546.9,2546.8,16.951]
[1747700486251,3.92534818,2547.6,2547.0,4.96169945]
[1747700486446,0.05,2547.9,2547.2,1.0356]
[1747700486664,0.05,2547.9,2547.5,1.0356]
[1747700486884,0.05,2547.9,2547.7,1.0356]
[1747700487188,0.05,2547.9,2547.8,24.951]
[1747700487382,0.05,2547.9,2547.8,30.71650028]
[1747700487685,0.05,2547.9,2547.8,34.64145514]
[1747700488067,0.05,2547.9,2547.8,34.03645514]
[1747700488469,0.05,2547.9,2547.8,30.11150028]
[1747700488670,0.05,2547.9,2547.8,35.8936]
[1747700489052,0.05,2547.9,2547.8,39.616703]
[1747700489390,3.97480081,2547.9,2547.8,35.8936]
[1747700490165,0.05,2547.9,2547.8,35.8936]
[1747700490365,3.97480081,2547.9,2547.8,26.858]
[1747700491267,0.83995161,2547.9,2547.0,16.947]
[1747700491506,0.05,2547.9,2547.1,9.906]
[1747700491807,3.92378356,2548.6,2547.8,12.89650739]
[1747700491950,0.05,2548.9,2547.8,12.89650739]
[1747700491951,3.92401044,2548.5,2547.9,9.906]
[1747700492151,0.05,2548.9,2548.1,0.9793]
[1747700492381,3.92356887,2548.7,2548.3,8.0]
[1747700492567,3.92374738,2548.6,2548.3,8.0]
[1747700492790,0.05,2548.9,2548.1,0.9793]
[1747700492791,3.92433874,2548.2,2548.1,0.9793]
[1747700492993,3.92433874,2548.2,2548.1,10.8853]
[1747700493162,3.92433874,2548.2,2548.1,18.8853]
[1747700493362,3.92392494,2548.5,2547.1,0.9793]
[1747700493363,3.92449275,2548.1,2547.1,0.9793]
[1747700493599,3.92534183,2547.6,2547.4,9.905]
[1747700493763,3.92541707,2547.5,2547.4,9.905]
[1747700493965,4.94900865,2548.4,2547.4,9.905]
[1747700494174,0.55,2548.3,2547.4,9.905]
[1747700494390,3.92449275,2548.1,2547.4,9.905]
[1747700494613,3.92464678,2548.0,2547.4,9.905]
[1747700494751,3.92541707,2547.5,2547.4,9.905]
[1747700495792,3.9245932,2548.1,2547.4,22.049624]
[1747700495970,3.92372282,2548.6,2547.6,8.0]
[1747700496176,3.92510892,2547.7,2547.6,8.0]
[1747700496377,3.92526299,2547.6,2547.5,1.0086]
[1747700496681,3.92526299,2547.6,2547.5,9.905]
[1747700497457,3.9242982,2548.3,2547.5,9.905]
[1747700497663,3.92351682,2548.8,2547.7,1.0345]
[1747700497888,3.92370859,2548.7,2547.7,1.0345]
[1747700498200,3.92467424,2548.0,2547.7,1.0345]
[1747700498513,0.05,2548.9,2547.8,8.0]
[1747700498814,0.05,2548.9,2547.8,1.0345]
[1747700499109,3.92442475,2548.2,2547.8,1.0345]
[1747700499263,3.92442475,2548.2,2547.8,1.93795]
[1747700499697,3.92424263,2548.3,2547.8,1.93795]
[1747700499857,3.92435075,2548.2,2547.8,1.93795]
[1747700500258,3.92424891,2548.3,2547.8,1.93795]
[1747700500499,3.92477224,2548.0,2547.8,1.0345]
[1747700500801,3.92449275,2548.1,2547.9,9.904]
[1747700500971,3.92464678,2548.0,2547.9,9.904]
[1747700501297,3.9243317,2548.3,2547.9,9.904]
[1747700501503,3.92435882,2548.2,2548.0,8.0]
[1747700501663,3.92449275,2548.1,2548.0,8.0]
[1747700502198,3.92526299,2547.6,2547.5,9.904]
[1747700503217,1.0018,2547.6,2546.5,0.9345]
[1747700503494,1.0018,2547.6,2546.7,8.0]
[1747700503495,3.92660533,2546.8,2546.7,8.0]
[1747700503713,1.0018,2548.0,2546.8,0.9345]
[1747700503909,3.92558353,2547.4,2547.0,0.9345]
[1747700504055,0.04907048,2548.2,2547.1,0.89345]
[1747700504056,3.92532984,2547.6,2547.1,0.89345]
[1747700504263,3.92558245,2547.4,2547.2,17.904]
[1747700504460,3.92558245,2547.4,2547.3,8.0]
[1747700504699,3.92603352,2547.1,2547.0,0.9345]
[1747700504883,3.9258234,2547.3,2547.1,8.0]
[1747700505067,3.92587939,2547.2,2547.1,8.0]
[1747700507006,3.92433874,2548.2,2547.1,8.0]
[1747700507202,0.49261387,2548.2,2547.1,9.88385]
[1747700507369,3.92542951,2547.5,2547.1,9.88385]
[1747700508002,3.92542951,2547.5,2547.2,0.36634033]
[1747700508301,3.92449275,2548.1,2547.2,0.36634033]
[1747700508302,3.92572527,2547.3,2547.2,0.36634033]
[1747700508898,3.92381767,2548.6,2547.2,0.36634033]
[1747700509103,3.92381767,2548.6,2547.2,2.42264743]
[1747700509104,3.92418475,2548.3,2547.2,2.42264743]
[1747700509280,3.92464678,2548.0,2547.2,2.42264743]
[1747700509476,3.92572527,2547.3,2547.2,2.42264743]
[1747700509691,3.92572527,2547.3,2547.2,0.36634033]
[1747700509887,3.92572527,2547.3,2547.2,0.50226419]
[1747700511016,3.92549875,2547.5,2547.2,0.50233063]
[1747700511310,3.92545723,2547.5,2547.2,0.50233063]
[1747700511510,3.92459627,2548.1,2547.2,0.50233063]
[1747700511711,0.39245963,2548.0,2547.2,0.50233063]
[1747700511909,0.39245963,2548.0,2547.2,0.36634033]
[1747700511910,3.92547277,2547.5,2547.2,0.36634033]
[1747700512112,3.92572527,2547.3,2547.2,0.36634033]
[1747700513001,3.92572527,2547.3,2547.2,0.50230203]
[1747700513879,3.92572527,2547.3,2547.2,0.36634033]
[1747700515690,4.31714526,2548.0,2547.2,0.36634033]
[1747700515896,3.92480081,2547.9,2547.2,0.36634033]
[1747700516145,3.92539938,2547.6,2547.2,0.36634033]
[1747700516444,3.92572527,2547.3,2547.2,0.36634033]
[1747700517226,3.92603352,2547.1,2547.0,8.0]
[1747700517540,3.92618767,2547.0,2546.9,9.903]
[1747700517745,3.92618767,2547.0,2546.9,17.903]
[1747700518040,3.92569894,2547.4,2547.0,8.0]
[1747700518396,3.92575455,2547.3,2547.0,8.0]
[1747700518741,3.92580324,2547.3,2547.0,8.0]
[1747700518914,3.92591655,2547.2,2547.0,8.0]
[1747700519235,3.92587939,2547.2,2547.1,0.36794338]
[1747700520835,3.92569786,2547.4,2547.1,0.36794338]
[1747700520994,3.92490874,2547.9,2547.1,0.36794338]
[1747700521197,3.92495655,2547.8,2547.2,0.9707]
[1747700521424,3.92570189,2547.4,2547.2,0.9707]
[1747700521811,3.92460921,2548.1,2547.2,0.9707]
[1747700522039,3.92543539,2547.5,2547.2,0.9707]
[1747700522338,3.92558356,2547.4,2547.2,0.9707]
[1747700522697,3.92558356,2547.4,2547.3,0.36794338]
[1747700523935,3.97466188,2547.4,2547.3,0.36794338]
[1747700524100,3.92558356,2547.4,2547.3,0.36794338]
[1747700524635,3.92618767,2547.0,2546.9,9.903]
[1747700526513,4.7114117,2547.0,2546.9,9.903]
[1747700526696,4.7114117,2547.0,2546.3,0.45617779]
[1747700526901,3.92695857,2546.5,2546.4,26.848]
[1747700527606,3.9268803,2546.6,2546.4,26.848]
[1747700527934,3.92695857,2546.5,2546.4,26.848]
[1747700528435,4.71234246,2546.5,2546.4,16.944]
[1747700528941,4.85601278,2546.4,2546.3,0.45617779]
[1747700529235,5.40601278,2546.4,2546.3,0.45617779]
[1747700529407,13.45510981,2546.4,2546.3,0.45617779]
[1747700529608,4.47742125,2546.2,2546.1,0.64396813]
[1747700529821,13.5543267,2546.2,2546.1,0.04825664]
[1747700530022,13.5543267,2546.2,2545.6,11.42389807]
[1747700530023,4.47819263,2545.7,2545.6,11.42389807]
[1747700530342,13.50599263,2545.7,2545.6,11.42389807]
[1747700530839,4.95599263,2545.7,2545.6,11.42389807]
[1747700531014,5.8443971,2545.7,2545.6,11.42389807]
[1747700531214,6.3943971,2545.7,2545.6,11.42389807]
[1747700531430,14.3943971,2545.7,2545.6,11.42389807]
[1747700533420,6.3943971,2545.7,2545.6,11.42389807]
[1747700534903,14.3943971,2545.7,2545.6,11.42389807]
[1747700536206,4.47896432,2545.2,2545.1,0.05]
[1747700536406,26.07995131,2545.2,2545.1,0.05]
[1747700536624,26.03081757,2545.2,2545.1,0.05]
[1747700536807,4.48019965,2544.4,2544.3,11.75103306]
[1747700537312,3.93019965,2544.4,2544.3,11.75103306]
[1747700537757,4.48019965,2544.4,2544.3,11.75103306]
[1747700538609,3.93019965,2544.4,2544.3,11.75103306]
[1747700540521,4.48019965,2544.4,2544.3,11.75103306]
[1747700541670,4.52933794,2544.4,2544.3,11.75103306]
[1747700541827,12.52933794,2544.4,2544.3,11.75103306]
[1747700542009,15.6852529,2544.4,2544.3,11.75103306]
[1747700542213,18.32488421,2544.4,2544.3,7.75113306]
[1747700542539,4.4820541,2543.2,2543.1,0.05]
[1747700543714,12.4820541,2543.2,2543.1,0.05]
[1747700544335,12.48236335,2543.0,2542.9,3.30873245]
[1747700544533,4.48360081,2542.2,2541.3,9.623]
[1747700544930,4.48360081,2542.2,2541.2,16.965]
[1747700545126,4.48452943,2541.6,2540.9,0.59571149]
[1747700545494,3.93452943,2541.6,2541.2,1.019]
[1747700545699,3.9328273,2542.7,2541.2,1.019]
[1747700545860,8.0,2543.0,2541.7,1.019]
[1747700546061,3.9319815,2543.3,2541.8,1.019]
[1747700546294,0.78636094,2543.3,2542.0,1.019]
[1747700546613,3.93375555,2542.1,2542.0,1.019]
[1747700546898,8.0,2543.3,2542.0,1.019]
[1747700547097,3.93375555,2542.1,2542.0,1.019]
[1747700547394,3.93366302,2542.2,2542.0,1.019]
[1747700547895,3.93288561,2542.7,2542.0,1.019]
[1747700548189,3.93375555,2542.1,2542.0,1.019]
[1747700548396,3.93346591,2542.3,2542.0,1.019]
[1747700548895,3.93159032,2543.5,2542.0,1.019]
[1747700549214,0.32646889,2543.4,2542.0,1.019]
[1747700549361,3.93349092,2542.3,2542.0,1.019]
[1747700549555,3.93375555,2542.1,2542.0,1.019]
[1747700551464,3.93415834,2541.9,2541.6,8.0]
[1747700551663,3.93415834,2541.9,2541.5,12.40530303]
[1747700551664,3.93452943,2541.6,2541.5,12.40530303]
[1747700554176,4.48452943,2541.6,2541.5,12.40530303]
[1747700554505,3.93452943,2541.6,2541.5,12.40530303]
[1747700556112,3.93452943,2541.6,2541.5,13.64583333]
[1747700556324,3.93452943,2541.6,2541.5,14.60543333]
[1747700557215,3.93405118,2542.0,2541.6,8.0]
[1747700557577,3.9341054,2541.9,2541.6,8.0]
[1747700557780,3.93421984,2541.8,2541.7,2.26054333]
[1747700558016,4.95650588,2543.1,2541.8,8.9596]
[1747700558181,3.9328168,2542.8,2542.0,0.9596]
[1747700558380,3.93375555,2542.1,2542.0,0.9596]
[1747700558577,4.26022444,2542.1,2542.0,0.9596]
[1747700558783,4.26022444,2542.1,2542.0,18.5476]
[1747700559005,0.32646889,2542.1,2542.0,22.10056]
[1747700559211,0.32646889,2542.1,2542.0,30.942263]
[1747700559419,3.9318995,2543.3,2542.1,0.9596]
[1747700559578,3.93307684,2542.6,2542.1,0.9596]
[1747700559793,3.9318995,2543.3,2542.1,0.9596]
[1747700559997,3.93288233,2542.7,2542.2,10.210056]
[1747700560206,3.93298269,2542.6,2542.2,10.210056]
[1747700560417,5.25475626,2543.8,2542.2,10.210056]
[1747700560418,3.93279108,2542.8,2542.2,10.210056]
[1747700560628,3.93226025,2543.1,2542.2,10.210056]
[1747700560930,3.93289511,2542.7,2542.2,10.210056]
[1747700561135,3.93289511,2542.7,2542.3,1.1169656]
[1747700561496,3.93291766,2542.7,2542.3,1.1169656]
[1747700561827,3.93211162,2543.2,2542.3,9.1169656]
[1747700562034,3.93214264,2543.2,2542.6,1.0051]
[1747700562328,3.93251799,2542.9,2542.8,8.0]
[1747700562492,3.93196697,2543.3,2542.2,1.0051]
[1747700562493,3.93344609,2542.3,2542.2,1.0051]
[1747700563428,3.93375555,2542.1,2542.0,8.0]
[1747700563598,3.9339103,2542.0,2541.9,17.9871]
[1747700563797,3.9339103,2542.0,2541.9,35.5751]
[1747700563995,3.9339103,2542.0,2541.9,27.5751]
[1747700564529,3.93452943,2541.6,2541.5,22.95630303]
[1747700565719,3.93388,2542.1,2541.5,22.95630303]
[1747700565917,4.8950666,2542.6,2541.6,8.0]
[1747700566229,3.93216955,2543.2,2541.6,8.0]
[1747700566230,3.93391833,2542.0,2541.6,8.0]
[1747700566526,3.93392793,2542.0,2541.6,8.0]
[1747700566929,3.93348318,2542.3,2541.7,0.9398]
[1747700567130,3.93384202,2542.1,2541.7,0.9398]
[1747700567428,3.93395326,2542.0,2541.8,0.89398]
[1747700567632,0.9808,2543.0,2541.8,0.89398]
[1747700567633,0.55,2542.7,2541.8,0.89398]
[1747700567798,0.55,2542.7,2541.6,8.0]
[1747700567799,3.93410048,2541.9,2541.6,8.0]
[1747700567999,3.93437463,2541.7,2541.6,8.0]
[1747700568702,3.93452943,2541.6,2541.5,21.99430303]
[1747700569523,3.93440906,2541.7,2541.6,8.0]
[1747700571231,3.93296577,2542.7,2541.6,8.0]
[1747700571232,3.93313667,2542.5,2541.6,9.589]
[1747700571439,3.93437463,2541.7,2541.6,9.589]
[1747700571828,3.93313667,2542.5,2541.6,9.589]
[1747700572027,3.93416096,2541.9,2541.7,2.1994303]
[1747700572430,1.0655,2542.9,2541.8,1.44989033]
[1747700572625,1.0655,2542.9,2541.9,8.0]
[1747700572856,3.93357514,2542.3,2542.1,8.0]
[1747700573055,1.0655,2543.3,2542.2,9.589]
[1747700573250,3.93254773,2542.9,2542.2,9.589]
[1747700573460,3.9320541,2543.2,2542.2,9.589]
[1747700573461,3.93220872,2543.1,2542.2,9.589]
[1747700573663,0.78642628,2543.0,2542.3,8.0]
[1747700573968,3.93193141,2543.3,2542.9,1.081]
[1747700574168,3.9320541,2543.2,2543.1,8.0]
[1747700574369,3.9320541,2543.2,2543.0,26.573]
[1747700574370,3.93220872,2543.1,2543.0,16.984]
[1747700574743,3.93136745,2543.7,2543.0,16.984]
[1747700574950,3.93136745,2543.7,2543.1,1.1396]
[1747700575148,3.9320541,2543.2,2543.1,1.1396]
[1747700575781,3.9317672,2543.4,2543.1,1.1396]
[1747700575944,3.9320541,2543.2,2543.1,1.1396]
[1747700576332,3.93194962,2543.3,2543.1,1.1396]
[1747700576532,3.9320541,2543.2,2543.1,2.79098394]
[1747700576771,3.9320541,2543.2,2543.1,12.37998394]
[1747700577465,3.9320541,2543.2,2543.1,9.589]
[1747700578149,3.93220872,2543.1,2543.0,16.984]
[1747700579169,3.93298198,2542.6,2542.5,1.70491149]
[1747700579472,3.93298198,2542.6,2542.5,0.59571149]
[1747700579631,3.93344609,2542.3,2542.2,9.588]
[1747700580273,3.93452943,2541.6,2541.5,13.00101452]
[1747700582243,3.93452943,2541.6,2541.5,12.40530303]
[1747700583602,1.35493688,2542.1,2541.5,12.40530303]
[1747700583603,3.93447716,2541.7,2541.5,12.40530303]
[1747700583898,3.93452943,2541.6,2541.5,12.40530303]
[1747700585071,4.48452943,2541.6,2541.5,12.40530303]
[1747700585285,6.42411984,2541.6,2541.5,12.40530303]
[1747700585886,14.42411984,2541.6,2541.5,12.40530303]
[1747700586064,5.03222943,2541.6,2541.5,12.40530303]
[1747700586863,5.58222943,2541.6,2541.5,12.40530303]
[1747700587206,13.58222943,2541.6,2541.5,12.40530303]
[1747700587412,23.17222943,2541.6,2541.5,12.40530303]
[1747700588603,27.97152943,2541.6,2541.5,9.86283554]
[1747700588767,31.48262516,2541.6,2541.5,9.86283554]
[1747700588968,15.99562516,2541.6,2541.5,9.86283554]
[1747700589172,15.68958268,2541.6,2541.5,9.86283554]
[1747700589499,25.16458268,2541.6,2541.5,9.86283554]
[1747700590499,31.59063568,2541.6,2541.5,6.88283554]
[1747700590708,31.06558268,2541.6,2541.5,6.88283554]
[1747700591409,44.61733068,2541.6,2541.5,5.73883554]
[1747700591614,48.65889626,2541.6,2541.5,5.73883554]
[1747700591822,4.48669789,2540.2,2540.1,12.78243802]
[1747700592324,15.69175114,2540.2,2540.1,11.27094788]
[1747700592480,12.48669789,2540.2,2540.1,11.27094788]
[1747700592677,21.96369789,2540.2,2540.1,11.27094788]
[1747700592908,22.75037324,2540.2,2540.1,11.27094788]
[1747700593121,22.75037324,2540.2,2540.1,10.46695388]
[1747700593312,22.75037324,2540.2,2540.1,7.87637296]
[1747700593474,3.93824826,2539.2,2539.1,0.05]
[1747700593675,12.48824826,2539.2,2539.1,0.05]
[1747700594489,15.69330151,2539.2,2539.1,0.05]
[1747700594689,16.65697654,2539.2,2539.1,0.05]
[1747700595318,13.45192329,2539.2,2539.1,0.05]
[1747700595516,12.48824826,2539.2,2539.1,0.05]
[1747700596036,4.48824826,2539.2,2539.1,0.05]
[1747700596933,12.48824826,2539.2,2539.1,0.05]
[1747700597423,12.51384826,2539.2,2539.1,0.05]
[1747700598187,12.80313038,2539.2,2539.1,0.05]
[1747700598519,4.22753038,2539.2,2539.1,0.05]
[1747700598918,5.59409419,2539.2,2539.1,0.05]
[1747700600219,4.22753038,2539.2,2539.1,0.05]
[1747700601002,3.93824826,2539.2,2539.1,0.05]
[1747700601405,12.51384826,2539.2,2539.1,0.05]
[1747700601631,15.71890151,2539.2,2539.1,0.05]
[1747700603121,20.91810151,2539.2,2539.1,0.05]
[1747700603448,18.82498622,2539.2,2539.1,0.05]
[1747700603852,28.30998622,2539.2,2539.1,0.05]
[1747700604433,15.06993297,2539.2,2539.1,0.05]
[1747700604753,3.96384826,2539.2,2539.1,0.05]
[1747700605053,11.93824826,2539.2,2539.1,0.05]
[1747700605241,3.93824826,2539.2,2539.1,0.05]
[1747700606253,4.48824826,2539.2,2539.1,0.05]
[1747700606948,12.48824826,2539.2,2539.1,0.05]
[1747700607147,14.16094764,2539.2,2539.1,0.05]
[1747700607715,14.18654764,2539.2,2539.1,0.05]
[1747700609257,4.48886875,2538.8,2538.7,13.059573]
[1747700611936,3.93886875,2538.8,2538.7,13.059573]
[1747700613061,12.48886875,2538.8,2538.7,13.059573]
[1747700613234,14.45213426,2538.8,2538.7,13.059573]
[1747700613961,3.93886875,2538.8,2538.7,13.059573]
[1747700614144,3.20505325,2539.9,2538.7,13.059573]
[1747700614145,0.0256,2539.9,2538.7,13.059573]
[1747700614327,3.93849304,2539.1,2538.9,1.1383]
[1747700614529,3.93855848,2539.0,2538.9,1.1383]
[1747700614765,3.93725368,2539.9,2538.9,12.0460873]
[1747700614925,4.23855775,2539.9,2538.9,12.0460873]
[1747700615122,4.23850396,2539.9,2539.0,1.0579]
[1747700615328,3.93818179,2539.3,2539.0,1.0579]
[1747700615666,3.93788824,2539.5,2539.0,1.0579]
[1747700615667,3.93789875,2539.5,2539.1,1.0579]
[1747700615845,3.93794752,2539.4,2539.3,1.0579]
[1747700616050,3.93794752,2539.4,2539.3,10.5459]
[1747700616546,3.93794752,2539.4,2539.3,1.0579]
[1747700616734,3.93794752,2539.4,2539.3,10.5449]
[1747700619656,3.93794752,2539.4,2539.3,1.0579]
[1747700620324,3.93794752,2539.4,2538.9,18.1532]
[1747700620325,3.93855848,2539.0,2538.9,18.1532]
[1747700620529,3.93855848,2539.0,2538.9,27.3892]
[1747700621356,3.93844776,2539.1,2539.0,8.0]
[1747700621562,3.93824826,2539.2,2539.0,8.0]
[1747700621757,3.93840337,2539.1,2539.0,8.0]
[1747700622160,3.93830533,2539.2,2539.1,1.0524]
[1747700622365,3.93830533,2539.2,2539.1,1.42237329]
[1747700624154,3.93830533,2539.2,2539.1,10.65837329]
[1747700624747,3.93830533,2539.2,2539.1,10.2884]
[1747700625463,11.93830533,2539.2,2539.1,10.2884]
[1747700626266,3.93830533,2539.2,2539.1,13.01814]
[1747700627172,3.93830533,2539.2,2539.1,13.01714]
[1747700627791,3.93830533,2539.2,2539.1,10.2874]
[1747700628265,3.93830533,2539.2,2539.1,10.65719938]
[1747700630036,3.93830533,2539.2,2539.1,10.2874]
[1747700630569,3.93784357,2539.5,2539.1,10.2874]
[1747700630746,3.93820649,2539.3,2539.1,10.2874]
[1747700630949,3.93823691,2539.3,2539.1,13.01704]
[1747700631148,3.93824826,2539.2,2539.1,13.01704]
[1747700631541,3.93824826,2539.2,2539.1,10.2874]
[1747700632551,3.93702131,2540.0,2538.9,17.009]
[1747700632552,3.93855848,2539.0,2538.9,17.009]
[1747700632742,3.93855848,2539.0,2538.9,26.244]
[1747700633662,3.93871361,2538.9,2538.8,1.2099]
[1747700633844,3.93886875,2538.8,2538.7,13.059573]
[1747700634259,3.93876365,2538.9,2538.7,13.059573]
[1747700634455,3.93809317,2539.3,2538.7,15.4125003]
[1747700634661,3.93856078,2539.0,2538.8,1.2347]
[1747700634865,3.93846764,2539.1,2538.8,1.2347]
[1747700635044,3.93835852,2539.2,2538.8,9.2347]
[1747700635374,3.93843872,2539.1,2538.8,15.1387]
[1747700635575,3.93843872,2539.1,2538.9,0.37040395]
[1747700636378,3.93831181,2539.2,2538.9,0.37040395]
[1747700636877,3.9380543,2539.4,2539.0,9.2125]
[1747700637056,3.9380543,2539.4,2539.1,26.239]
[1747700637258,3.93822307,2539.3,2539.1,26.66758749]
[1747700637460,3.93824826,2539.2,2539.1,17.004]
[1747700637778,3.93804105,2539.4,2539.1,26.239]
[1747700638140,3.93816285,2539.3,2539.1,26.239]
[1747700638345,3.93762797,2539.6,2539.1,26.239]
[1747700638568,3.93821899,2539.3,2539.1,26.239]
[1747700638775,3.93886875,2538.8,2538.7,22.294573]
[1747700638973,3.93886875,2538.8,2538.7,30.294573]
[1747700639280,3.9386242,2539.0,2538.7,30.294573]
[1747700639485,3.93832536,2539.2,2538.7,30.294573]
[1747700639704,0.2493,2540.1,2538.8,9.1619]
[1747700639849,3.93824828,2539.2,2539.0,8.0]
[1747700640245,3.93824828,2539.2,2538.9,4.34460641]
[1747700640246,1.24773389,2540.0,2538.9,1.1619]
[1747700640472,3.93855848,2539.0,2538.9,1.1619]
[1747700640689,3.93731789,2539.8,2538.9,10.3969]
[1747700640891,3.93808258,2539.4,2538.9,10.3969]
[1747700641192,3.93814973,2539.3,2538.9,10.3969]
[1747700641546,3.93843149,2539.1,2538.9,10.3969]
[1747700641750,3.93855848,2539.0,2538.9,1.1619]
[1747700641992,3.93855848,2539.0,2538.9,10.3969]
[1747700642489,3.93886875,2538.8,2538.7,22.294573]
[1747700642662,5.12048495,2538.8,2538.7,22.294573]
[1747700643989,3.93886875,2538.8,2538.7,22.294573]
[1747700644367,3.93879343,2538.9,2538.7,22.294573]
[1747700644669,14.07821086,2539.3,2538.7,13.059573]
[1747700644873,3.93886875,2538.8,2538.7,13.059573]
[1747700645053,3.93872083,2538.9,2538.7,22.295573]
[1747700645256,3.93886875,2538.8,2538.7,22.295573]
[1747700645668,3.93886875,2538.8,2538.7,13.059573]
[1747700646566,3.93886875,2538.8,2538.7,22.295573]
[1747700647363,3.93886875,2538.8,2538.2,0.46240233]
[1747700647364,0.5,2538.7,2538.2,0.46240233]
[1747700647587,12.48964464,2538.3,2538.2,0.46240233]
[1747700647790,22.80948228,2538.3,2538.2,0.46240233]
[1747700648155,13.57348228,2538.3,2538.2,0.46240233]
[1747700648489,12.18894464,2538.3,2538.2,0.46240233]
[1747700648796,12.40915519,2538.3,2538.2,0.46240233]
[1747700649289,12.40915519,2538.3,2537.9,0.59571149]
[1747700649290,11.93979985,2538.2,2537.9,0.59571149]
[1747700649607,15.71899054,2538.0,2537.9,0.59571149]
[1747700649758,37.60026954,2538.0,2537.9,0.59571149]
[1747700650076,34.03059954,2538.0,2537.9,0.59571149]
[1747700650278,4.49104201,2537.4,2537.3,13.38670799]
[1747700650452,25.13092223,2537.4,2537.3,13.38670799]
[1747700650651,15.71992223,2537.4,2537.3,13.38670799]
[1747700650856,3.94104201,2537.4,2537.3,13.38670799]
[1747700652069,11.94104201,2537.4,2537.3,13.38670799]
[1747700652390,12.49104201,2537.4,2537.3,13.38670799]
[1747700652596,12.70988727,2537.4,2537.3,13.38670799]
[1747700652801,22.12088727,2537.4,2537.3,13.38670799]
[1747700653599,22.12088727,2537.4,2537.3,13.18214583]
[1747700653797,28.02888727,2537.4,2537.3,13.18214583]
[1747700654008,22.12188727,2537.4,2537.3,13.18214583]
[1747700654175,12.70988727,2537.4,2537.3,13.18214583]
[1747700654498,22.12188727,2537.4,2537.3,13.18214583]
[1747700655098,12.70988727,2537.4,2537.3,13.18214583]
[1747700655262,22.12188727,2537.4,2537.3,13.18214583]
[1747700655462,12.70988727,2537.4,2537.3,13.18214583]
[1747700655979,12.49104201,2537.4,2537.3,13.18214583]
[1747700656961,3.94104201,2537.4,2537.3,13.18214583]
[1747700658299,11.94104201,2537.4,2537.3,13.18214583]
[1747700658503,3.94104201,2537.4,2537.3,13.18214583]
[1747700659064,11.94104201,2537.4,2537.3,13.18214583]
[1747700659802,12.62764201,2537.4,2537.3,13.18214583]
[1747700660564,27.95164201,2537.4,2537.3,13.18214583]
[1747700661794,22.04264201,2537.4,2537.3,13.18214583]
[1747700662098,3.94104201,2537.4,2537.3,13.18214583]
[1747700664073,0.2941634,2538.3,2537.3,14.62308041]
[1747700664390,3.94104201,2537.4,2537.3,14.62308041]
[1747700664598,3.94061491,2537.7,2537.4,1.1772]
[1747700664791,3.93917278,2538.7,2537.4,9.1772]
[1747700664792,3.94088669,2537.5,2537.4,9.1772]
[1747700664965,3.94057071,2537.8,2537.4,9.1772]
[1747700665300,3.94073139,2537.6,2537.5,2.38002804]
[1747700665907,3.94066987,2537.7,2537.5,2.38002804]
[1747700666103,3.94073139,2537.6,2537.5,2.38002804]
[1747700667405,3.94062644,2537.7,2537.5,2.38002804]
[1747700667704,3.93945626,2538.5,2537.7,1.2666]
[1747700667903,3.94042083,2537.8,2537.7,1.2666]
[1747700668668,3.94042083,2537.8,2537.7,10.6816]
[1747700669678,3.94057611,2537.7,2537.6,26.433]
[1747700676694,3.94057611,2537.7,2537.3,13.18214583]
[1747700676695,3.94104201,2537.4,2537.3,13.18214583]
[1747700678223,3.94104201,2537.4,2537.3,22.59614583]
[1747700685831,3.94104201,2537.4,2537.3,13.18214583]
[1747700686931,3.94104201,2537.4,2537.3,14.36824583]
[1747700687102,3.94104201,2537.4,2537.3,15.81007041]
[1747700687497,0.1366,2538.4,2537.3,23.81007041]
[1747700687703,3.94089977,2537.5,2537.4,17.151]
[1747700688328,3.94048689,2537.8,2537.5,1.1861]
[1747700688740,3.93927693,2538.6,2537.5,9.1861]
[1747700688934,3.94051417,2537.8,2537.5,12.51934271]
[1747700689250,3.93916638,2538.7,2537.6,1.1861]
[1747700689402,3.93922258,2538.6,2537.6,1.1861]
[1747700689731,3.94030146,2537.9,2537.7,0.37135666]
[1747700689933,3.94042083,2537.8,2537.7,0.37135666]
[1747700690348,3.94042083,2537.8,2537.7,17.52235666]
[1747700690500,3.94042083,2537.8,2537.7,9.52235666]
[1747700691737,3.94042083,2537.8,2537.7,9.151]
[1747700693751,3.94104201,2537.4,2537.3,13.18214583]
[1747700696704,3.94104201,2537.4,2537.3,22.33214583]
[1747700700459,0.1322,2538.3,2537.4,8.0]
[1747700700662,14.07923621,2538.6,2537.4,8.0]
[1747700700663,10.2722,2538.6,2537.5,1.1709]
[1747700700855,3.93929642,2538.6,2537.7,1.178]
[1747700701148,3.93958881,2538.4,2538.0,1.178]
[1747700701348,0.22068022,2538.5,2538.0,5.11800364]
[1747700701553,3.93889626,2538.8,2538.4,1.178]
[1747700701713,3.93928397,2538.6,2538.5,17.151]
[1747700701912,3.93928397,2538.6,2538.5,9.151]
[1747700702115,3.93824826,2539.2,2538.5,10.18692647]
[1747700702365,0.22068022,2539.3,2538.6,8.0]
[1747700702572,0.22068022,2539.3,2538.7,1.1899]